[Event "Titled Tuesday Blitz February 15 Early 2022"]
[White "Kezin, Roman"]
[Black "Vlassov, Nikolai"]
[WhiteFideId "24124621"]
[BlackFideId "4103360"]
[WhiteElo "2509"]
[BlackElo "2407"]
[Result "1-0"]
[Round "06"]
[TimeControl "180+1"]
[Date "2022.02.15"]
[WhiteClock "0:00:06"]
[BlackClock "0:00:19"]

1. b3 {[%clk 0:03:00]}  e5 {[%clk 0:02:59]} 2. Bb2 {[%clk 0:03:01]}  Nc6 {[%clk 0:02:59]} 3. e3 {[%clk 0:03:02]}  d5 {[%clk 0:02:59]} 4. Bb5 {[%clk 0:03:01]}  Bd6 {[%clk 0:03:00]} 5. f4 {[%clk 0:02:59]}  Qe7 {[%clk 0:02:43]} 6. Nf3 {[%clk 0:02:56]}  Bg4 {[%clk 0:02:42]} 7. h3 {[%clk 0:02:35]}  Bxf3 {[%clk 0:02:41]} 8. Qxf3 {[%clk 0:02:36]}  Nf6 {[%clk 0:02:41]} 9. Nc3 {[%clk 0:02:28]}  exf4 {[%clk 0:02:28]} 10. Nxd5 {[%clk 0:02:22]}  Nxd5 {[%clk 0:02:27]} 11. Qxd5 {[%clk 0:02:23]}  Qh4+ {[%clk 0:02:27]} 12. Ke2 {[%clk 0:02:16]}  O-O {[%clk 0:02:26]} 13. Raf1 {[%clk 0:01:37]}  fxe3 {[%clk 0:02:20]} 14. dxe3 {[%clk 0:01:38]}  Rae8 {[%clk 0:02:15]} 15. Bxc6 {[%clk 0:01:17]}  bxc6 {[%clk 0:02:15]} 16. Qxc6 {[%clk 0:01:17]}  Re6 {[%clk 0:02:06]} 17. Qd5 {[%clk 0:00:33]}  Rfe8 {[%clk 0:02:02]} 18. Rf3 {[%clk 0:00:33]}  Bf4 {[%clk 0:01:38]} 19. Bd4 {[%clk 0:00:19]}  c6 {[%clk 0:01:29]} 20. Qf5 {[%clk 0:00:13]}  Re4 {[%clk 0:01:16]} 21. g3 {[%clk 0:00:09]}  Qd8 {[%clk 0:00:55]} 22. Rxf4 {[%clk 0:00:07]}  Rxf4 {[%clk 0:00:53]} 23. Qxf4 {[%clk 0:00:06]}  c5 {[%clk 0:00:50]} 24. Bc3 {[%clk 0:00:05]}  f6 {[%clk 0:00:45]} 25. Rf1 {[%clk 0:00:05]}  Kh8 {[%clk 0:00:44]} 26. Rf3 {[%clk 0:00:05]}  Qd5 {[%clk 0:00:39]} 27. g4 {[%clk 0:00:04]}  Rd8 {[%clk 0:00:39]} 28. Kf2 {[%clk 0:00:03]}  Qd1 {[%clk 0:00:38]} 29. Qe4 {[%clk 0:00:02]}  Qh1 {[%clk 0:00:33]} 30. Kg3 {[%clk 0:00:02]}  Qg1+ {[%clk 0:00:30]} 31. Kh4 {[%clk 0:00:02]}  Qg2 {[%clk 0:00:24]} 32. Qf4 {[%clk 0:00:01]}  Kg8 {[%clk 0:00:20]} 33. Rg3 {[%clk 0:00:01]}  g5+ {[%clk 0:00:20]} 34. Kh5 {[%clk 0:00:01]}  Qxc2 {[%clk 0:00:16]} 35. Qxf6 {[%clk 0:00:01]}  Qg6+ {[%clk 0:00:16]} 36. Qxg6+ {[%clk 0:00:01]}  hxg6+ {[%clk 0:00:17]} 37. Kxg6 {[%clk 0:00:02]}  Rd5 {[%clk 0:00:17]} 38. Kf6 {[%clk 0:00:02]}  Kf8 {[%clk 0:00:18]} 39. Be5 {[%clk 0:00:02]}  Ke8 {[%clk 0:00:18]} 40. Rf3 {[%clk 0:00:03]}  Kd7 {[%clk 0:00:18]} 41. Rf5 {[%clk 0:00:04]}  c4 {[%clk 0:00:18]} 42. Rxg5 {[%clk 0:00:05]}  cxb3 {[%clk 0:00:19]} 43. axb3 {[%clk 0:00:05]}  Rd3 {[%clk 0:00:19]} 44. Rg7+ {[%clk 0:00:05]}  Kc6 {[%clk 0:00:19]} 45. Bd4 {[%clk 0:00:06]}  Rxb3 {[%clk 0:00:19]} 46. Rxa7 {[%clk 0:00:06]}  Ra3 {[%clk 0:00:19]} 47. Rxa3 {[%clk 0:00:06]}  Kd5 {[%clk 0:00:19]} 48. Ra5+ {[%clk 0:00:06]} 1-0


[Site "https://www.chess.com"]

[Event "Titled Tuesday Blitz February 15 Early 2022"]
[White "Kovanova, Baira"]
[Black "FGHSMN"]
[WhiteFideId "4164083"]
[WhiteElo "2190"]
[BlackElo "2703"]
[Result "0-1"]
[Round "06"]
[TimeControl "180+1"]
[Date "2022.02.15"]
[WhiteClock "0:00:02"]
[BlackClock "0:00:49"]

1. e4 {[%clk 0:03:00]}  c5 {[%clk 0:02:55]} 2. Nf3 {[%clk 0:03:00]}  e6 {[%clk 0:02:56]} 3. d3 {[%clk 0:03:00]}  Nc6 {[%clk 0:02:54]} 4. g3 {[%clk 0:02:59]}  g6 {[%clk 0:02:55]} 5. Bg2 {[%clk 0:03:00]}  Bg7 {[%clk 0:02:55]} 6. O-O {[%clk 0:02:59]}  Nge7 {[%clk 0:02:55]} 7. c3 {[%clk 0:02:58]}  d5 {[%clk 0:02:54]} 8. Qe2 {[%clk 0:02:57]}  e5 {[%clk 0:02:48]} 9. exd5 {[%clk 0:02:18]}  Qxd5 {[%clk 0:02:44]} 10. d4 {[%clk 0:02:18]}  cxd4 {[%clk 0:02:33]} 11. Nxd4 {[%clk 0:01:29]}  Nxd4 {[%clk 0:02:24]} 12. cxd4 {[%clk 0:01:29]}  Qxd4 {[%clk 0:02:24]} 13. Rd1 {[%clk 0:01:29]}  Qg4 {[%clk 0:02:21]} 14. Bf3 {[%clk 0:01:09]}  Qe6 {[%clk 0:01:51]} 15. Qb5+ {[%clk 0:01:03]}  Nc6 {[%clk 0:01:46]} 16. Bd5 {[%clk 0:00:59]}  Qd7 {[%clk 0:01:44]} 17. Nc3 {[%clk 0:00:52]}  O-O {[%clk 0:01:42]} 18. Bg5 {[%clk 0:00:46]}  Nd4 {[%clk 0:01:40]} 19. Qf1 {[%clk 0:00:22]}  Qg4 {[%clk 0:01:25]} 20. Be7 {[%clk 0:00:18]}  Re8 {[%clk 0:01:23]} 21. h3 {[%clk 0:00:18]}  Qxh3 {[%clk 0:01:21]} 22. Bc5 {[%clk 0:00:10]}  Qxf1+ {[%clk 0:01:15]} 23. Rxf1 {[%clk 0:00:11]}  Be6 {[%clk 0:01:16]} 24. Bxb7 {[%clk 0:00:10]}  Rab8 {[%clk 0:01:16]} 25. Bg2 {[%clk 0:00:09]}  Rxb2 {[%clk 0:01:14]} 26. Bxa7 {[%clk 0:00:09]}  Ra8 {[%clk 0:01:08]} 27. Bxa8 {[%clk 0:00:08]}  Rc2 {[%clk 0:01:04]} 28. Ne4 {[%clk 0:00:04]}  Bc4 {[%clk 0:01:02]} 29. Rfc1 {[%clk 0:00:03]}  Ne2+ {[%clk 0:01:02]} 30. Kg2 {[%clk 0:00:03]}  Nxc1 {[%clk 0:01:01]} 31. Nd6 {[%clk 0:00:02]}  Rxa2 {[%clk 0:00:49]} 32. Rxc1 {[%clk 0:00:02]}  Rxa7 {[%clk 0:00:49]} 0-1


[Site "https://www.chess.com"]

[Event "Titled Tuesday Blitz February 15 Early 2022"]
[White "Kretov, Evgenij"]
[Black "Selbes, Tarik"]
[WhiteFideId "4167821"]
[BlackFideId "6302513"]
[WhiteElo "2303"]
[BlackElo "2290"]
[Result "0-1"]
[Round "06"]
[TimeControl "180+1"]
[Date "2022.02.15"]
[WhiteClock "0:00:29"]
[BlackClock "0:00:16"]

1. d4 {[%clk 0:03:00]}  Nf6 {[%clk 0:02:59]} 2. c4 {[%clk 0:03:01]}  g6 {[%clk 0:02:58]} 3. Nc3 {[%clk 0:03:01]}  Bg7 {[%clk 0:02:57]} 4. e4 {[%clk 0:03:00]}  O-O {[%clk 0:02:35]} 5. Be2 {[%clk 0:03:01]}  d6 {[%clk 0:01:53]} 6. Bg5 {[%clk 0:03:00]}  Nbd7 {[%clk 0:01:10]} 7. Qd2 {[%clk 0:02:58]}  c5 {[%clk 0:01:10]} 8. d5 {[%clk 0:02:58]}  Re8 {[%clk 0:01:09]} 9. f4 {[%clk 0:02:56]}  a6 {[%clk 0:01:07]} 10. a4 {[%clk 0:02:55]}  Qa5 {[%clk 0:01:06]} 11. Ra3 {[%clk 0:02:49]}  e6 {[%clk 0:01:06]} 12. dxe6 {[%clk 0:02:36]}  Rxe6 {[%clk 0:01:04]} 13. Nf3 {[%clk 0:02:31]}  Qb4 {[%clk 0:00:52]} 14. f5 {[%clk 0:01:56]}  Nxe4 {[%clk 0:00:51]} 15. Nxe4 {[%clk 0:01:55]}  Rxe4 {[%clk 0:00:50]} 16. fxg6 {[%clk 0:01:45]}  hxg6 {[%clk 0:00:47]} 17. Qxb4 {[%clk 0:01:40]}  cxb4 {[%clk 0:00:47]} 18. Rd3 {[%clk 0:01:40]}  Nc5 {[%clk 0:00:45]} 19. Rxd6 {[%clk 0:01:40]}  Be6 {[%clk 0:00:43]} 20. Nd2 {[%clk 0:01:36]}  Re5 {[%clk 0:00:24]} 21. h4 {[%clk 0:01:29]}  Nxa4 {[%clk 0:00:20]} 22. b3 {[%clk 0:01:28]}  Nc5 {[%clk 0:00:20]} 23. Bf4 {[%clk 0:01:20]}  Rf5 {[%clk 0:00:20]} 24. O-O {[%clk 0:01:18]}  Re8 {[%clk 0:00:19]} 25. Bg4 {[%clk 0:01:17]}  Rxf4 {[%clk 0:00:19]} 26. Rxf4 {[%clk 0:01:17]}  Be5 {[%clk 0:00:18]} 27. Rxe6 {[%clk 0:01:14]}  Nxe6 {[%clk 0:00:18]} 28. Rf1 {[%clk 0:01:03]}  Bd4+ {[%clk 0:00:18]} 29. Kh2 {[%clk 0:01:02]}  Nc5 {[%clk 0:00:18]} 30. Rf3 {[%clk 0:01:00]}  Re2 {[%clk 0:00:18]} 31. Nf1 {[%clk 0:00:54]}  Be5+ {[%clk 0:00:18]} 32. Kg1 {[%clk 0:00:50]}  Bd4+ {[%clk 0:00:18]} 33. Kh2 {[%clk 0:00:49]}  Ne4 {[%clk 0:00:18]} 34. Rxf7 {[%clk 0:00:44]}  Rxg2+ {[%clk 0:00:16]} 35. Kxg2 {[%clk 0:00:45]}  Kxf7 {[%clk 0:00:17]} 36. Bf3 {[%clk 0:00:45]}  Nc5 {[%clk 0:00:17]} 37. Nd2 {[%clk 0:00:44]}  b6 {[%clk 0:00:16]} 38. Bd5+ {[%clk 0:00:39]}  Ke7 {[%clk 0:00:15]} 39. Kf1 {[%clk 0:00:38]}  Bc3 {[%clk 0:00:15]} 40. Nf3 {[%clk 0:00:35]}  Nxb3 {[%clk 0:00:15]} 41. Be4 {[%clk 0:00:35]}  Kf6 {[%clk 0:00:14]} 42. Ke2 {[%clk 0:00:35]}  Nc5 {[%clk 0:00:14]} 43. Bb1 {[%clk 0:00:35]}  a5 {[%clk 0:00:14]} 44. Nh2 {[%clk 0:00:30]}  b3 {[%clk 0:00:14]} 45. Ng4+ {[%clk 0:00:30]}  Kg7 {[%clk 0:00:14]} 46. Ne3 {[%clk 0:00:29]}  a4 {[%clk 0:00:15]} 47. Nd5 {[%clk 0:00:29]}  Bd4 {[%clk 0:00:15]} 48. Nxb6 {[%clk 0:00:29]}  a3 {[%clk 0:00:16]} 0-1


[Site "https://www.chess.com"]

[Event "Titled Tuesday Blitz February 15 Early 2022"]
[White "Kuzmin, Roman"]
[Black "Golsta, Madara"]
[WhiteFideId "44134932"]
[BlackFideId "11607386"]
[WhiteElo "1978"]
[BlackElo "1997"]
[Result "1-0"]
[Round "06"]
[TimeControl "180+1"]
[Date "2022.02.15"]
[WhiteClock "0:00:47"]
[BlackClock "0:00:33"]

1. e4 {[%clk 0:03:00]}  c5 {[%clk 0:02:59]} 2. Nf3 {[%clk 0:03:00]}  d6 {[%clk 0:02:59]} 3. d4 {[%clk 0:03:00]}  cxd4 {[%clk 0:03:00]} 4. Nxd4 {[%clk 0:03:01]}  Nf6 {[%clk 0:03:00]} 5. Nc3 {[%clk 0:03:02]}  g6 {[%clk 0:03:00]} 6. Be3 {[%clk 0:03:01]}  Bg7 {[%clk 0:03:00]} 7. f3 {[%clk 0:03:01]}  Nc6 {[%clk 0:03:00]} 8. Qd2 {[%clk 0:03:01]}  O-O {[%clk 0:03:00]} 9. O-O-O {[%clk 0:03:00]}  d5 {[%clk 0:03:00]} 10. exd5 {[%clk 0:02:56]}  Nxd5 {[%clk 0:02:59]} 11. Nxc6 {[%clk 0:02:30]}  bxc6 {[%clk 0:02:59]} 12. Bd4 {[%clk 0:02:31]}  Nxc3 {[%clk 0:02:54]} 13. Qxc3 {[%clk 0:02:13]}  Bh6+ {[%clk 0:02:47]} 14. Be3 {[%clk 0:02:06]}  Bxe3+ {[%clk 0:02:46]} 15. Qxe3 {[%clk 0:02:07]}  Qb6 {[%clk 0:02:46]} 16. Qxb6 {[%clk 0:01:55]}  axb6 {[%clk 0:02:46]} 17. a3 {[%clk 0:01:54]}  Be6 {[%clk 0:02:40]} 18. Bd3 {[%clk 0:01:54]}  b5 {[%clk 0:02:38]} 19. Be4 {[%clk 0:01:53]}  Rfc8 {[%clk 0:02:36]} 20. f4 {[%clk 0:01:52]}  b4 {[%clk 0:02:30]} 21. axb4 {[%clk 0:01:47]}  Ra1+ {[%clk 0:02:28]} 22. Kd2 {[%clk 0:01:47]}  Rd8+ {[%clk 0:02:28]} 23. Ke2 {[%clk 0:01:48]}  Rdxd1 {[%clk 0:01:51]} 24. Rxd1 {[%clk 0:01:47]}  Ra2 {[%clk 0:01:52]} 25. Rb1 {[%clk 0:01:38]}  Ra4 {[%clk 0:01:45]} 26. c3 {[%clk 0:01:22]}  c5 {[%clk 0:01:36]} 27. Bc2 {[%clk 0:01:21]}  Bc4+ {[%clk 0:01:27]} 28. Kd2 {[%clk 0:01:08]}  Ra7 {[%clk 0:01:18]} 29. bxc5 {[%clk 0:01:07]}  Rd7+ {[%clk 0:01:17]} 30. Ke3 {[%clk 0:01:07]}  Rd5 {[%clk 0:00:48]} 31. b4 {[%clk 0:01:05]}  Bb5 {[%clk 0:00:48]} 32. Be4 {[%clk 0:01:02]}  Rd8 {[%clk 0:00:46]} 33. Ra1 {[%clk 0:01:01]}  Kg7 {[%clk 0:00:41]} 34. Ra5 {[%clk 0:00:53]}  Bc4 {[%clk 0:00:40]} 35. c6 {[%clk 0:00:51]}  Rc8 {[%clk 0:00:38]} 36. Rc5 {[%clk 0:00:51]}  Bb3 {[%clk 0:00:35]} 37. b5 {[%clk 0:00:48]}  Ba4 {[%clk 0:00:33]} 38. b6 {[%clk 0:00:47]} 1-0


[Site "https://www.chess.com"]

[Event "Titled Tuesday Blitz February 15 Early 2022"]
[White "Le, Tuan Minh"]
[Black "Nguyen, Ngoc Truong Son"]
[WhiteFideId "12401153"]
[BlackFideId "12401110"]
[WhiteElo "2450"]
[BlackElo "2596"]
[Result "1-0"]
[Round "06"]
[TimeControl "180+1"]
[Date "2022.02.15"]
[WhiteClock "0:00:50"]
[BlackClock "0:00:02"]

1. d4 {[%clk 0:03:00]}  Nf6 {[%clk 0:02:59]} 2. Nf3 {[%clk 0:02:59]}  d6 {[%clk 0:02:58]} 3. Bg5 {[%clk 0:02:55]}  Nbd7 {[%clk 0:02:57]} 4. Nbd2 {[%clk 0:02:55]}  h6 {[%clk 0:02:57]} 5. Bh4 {[%clk 0:02:48]}  g5 {[%clk 0:02:56]} 6. Bg3 {[%clk 0:02:47]}  Bg7 {[%clk 0:02:54]} 7. e4 {[%clk 0:02:44]}  Nh5 {[%clk 0:02:50]} 8. c3 {[%clk 0:02:41]}  e6 {[%clk 0:02:49]} 9. Bc4 {[%clk 0:02:37]}  g4 {[%clk 0:02:42]} 10. Ng1 {[%clk 0:02:32]}  Nxg3 {[%clk 0:02:28]} 11. hxg3 {[%clk 0:02:33]}  Qg5 {[%clk 0:02:23]} 12. Ne2 {[%clk 0:02:32]}  Nb6 {[%clk 0:02:03]} 13. Bb3 {[%clk 0:02:28]}  Bd7 {[%clk 0:01:59]} 14. Nf4 {[%clk 0:02:26]}  h5 {[%clk 0:01:59]} 15. Qe2 {[%clk 0:02:15]}  O-O-O {[%clk 0:01:41]} 16. Nd3 {[%clk 0:01:45]}  e5 {[%clk 0:01:21]} 17. d5 {[%clk 0:01:38]}  f5 {[%clk 0:01:12]} 18. a4 {[%clk 0:01:38]}  Kb8 {[%clk 0:01:10]} 19. a5 {[%clk 0:01:38]}  Nc8 {[%clk 0:01:10]} 20. a6 {[%clk 0:01:36]}  b6 {[%clk 0:01:10]} 21. Ba4 {[%clk 0:01:36]}  b5 {[%clk 0:00:57]} 22. Bc2 {[%clk 0:01:21]}  Bh6 {[%clk 0:00:56]} 23. Nb4 {[%clk 0:01:09]}  Qxd2+ {[%clk 0:00:52]} 24. Qxd2 {[%clk 0:01:10]}  Bxd2+ {[%clk 0:00:53]} 25. Kxd2 {[%clk 0:01:11]}  f4 {[%clk 0:00:32]} 26. Bd3 {[%clk 0:01:09]}  Rdf8 {[%clk 0:00:28]} 27. Ke2 {[%clk 0:00:58]}  Rf6 {[%clk 0:00:15]} 28. Ra5 {[%clk 0:00:55]}  Rhf8 {[%clk 0:00:13]} 29. Bxb5 {[%clk 0:00:55]}  Bxb5+ {[%clk 0:00:06]} 30. Rxb5+ {[%clk 0:00:56]}  Nb6 {[%clk 0:00:07]} 31. Nd3 {[%clk 0:00:53]}  fxg3 {[%clk 0:00:05]} 32. fxg3 {[%clk 0:00:54]}  Kc8 {[%clk 0:00:03]} 33. b3 {[%clk 0:00:54]}  Kd7 {[%clk 0:00:02]} 34. c4 {[%clk 0:00:51]}  c6 {[%clk 0:00:02]} 35. dxc6+ {[%clk 0:00:51]}  Kxc6 {[%clk 0:00:03]} 36. Rxh5 {[%clk 0:00:51]}  Rf1 {[%clk 0:00:03]} 37. Rh7 {[%clk 0:00:51]}  Nd7 {[%clk 0:00:01]} 38. Nb4+ {[%clk 0:00:51]}  Kc7 {[%clk 0:00:02]} 39. Rb7+ {[%clk 0:00:50]} 1-0


[Site "https://www.chess.com"]

[Event "Titled Tuesday Blitz February 15 Early 2022"]
[White "Lodici, Lorenzo"]
[Black "Dobrov, Vladimir"]
[WhiteFideId "884189"]
[BlackFideId "4136594"]
[WhiteElo "2265"]
[BlackElo "2614"]
[Result "1-0"]
[Round "06"]
[TimeControl "180+1"]
[Date "2022.02.15"]
[WhiteClock "0:00:44"]
[BlackClock "0:00:02"]

1. e4 {[%clk 0:03:00]}  c5 {[%clk 0:02:57]} 2. Nc3 {[%clk 0:03:00]}  Nc6 {[%clk 0:02:57]} 3. Bb5 {[%clk 0:02:59]}  Nd4 {[%clk 0:02:58]} 4. Nf3 {[%clk 0:02:59]}  g6 {[%clk 0:02:58]} 5. Bc4 {[%clk 0:02:57]}  Bg7 {[%clk 0:02:58]} 6. Nxd4 {[%clk 0:02:57]}  cxd4 {[%clk 0:02:58]} 7. Ne2 {[%clk 0:02:58]}  Nf6 {[%clk 0:02:57]} 8. d3 {[%clk 0:02:57]}  d5 {[%clk 0:02:42]} 9. Bb5+ {[%clk 0:02:51]}  Bd7 {[%clk 0:02:42]} 10. Bxd7+ {[%clk 0:02:51]}  Nxd7 {[%clk 0:02:31]} 11. exd5 {[%clk 0:01:58]}  Nb6 {[%clk 0:02:31]} 12. Nf4 {[%clk 0:01:54]}  Nxd5 {[%clk 0:02:29]} 13. Nxd5 {[%clk 0:01:54]}  Qxd5 {[%clk 0:02:29]} 14. O-O {[%clk 0:01:55]}  O-O {[%clk 0:02:27]} 15. Re1 {[%clk 0:01:56]}  e6 {[%clk 0:02:27]} 16. Bf4 {[%clk 0:01:56]}  Rac8 {[%clk 0:02:26]} 17. Re2 {[%clk 0:01:51]}  Rc6 {[%clk 0:02:25]} 18. a4 {[%clk 0:01:44]}  e5 {[%clk 0:02:14]} 19. Bg3 {[%clk 0:01:43]}  f5 {[%clk 0:02:03]} 20. f3 {[%clk 0:01:40]}  Re8 {[%clk 0:02:02]} 21. Qe1 {[%clk 0:01:40]}  Rce6 {[%clk 0:01:55]} 22. h3 {[%clk 0:01:25]}  Bh6 {[%clk 0:01:47]} 23. Bf2 {[%clk 0:01:23]}  b6 {[%clk 0:01:24]} 24. Qb4 {[%clk 0:01:23]}  Bf8 {[%clk 0:01:22]} 25. Qb5 {[%clk 0:01:23]}  Bc5 {[%clk 0:00:51]} 26. Rae1 {[%clk 0:01:17]}  Kf7 {[%clk 0:00:49]} 27. a5 {[%clk 0:01:16]}  R8e7 {[%clk 0:00:49]} 28. Bh4 {[%clk 0:01:08]}  Re8 {[%clk 0:00:43]} 29. axb6 {[%clk 0:01:03]}  axb6 {[%clk 0:00:38]} 30. b4 {[%clk 0:01:00]}  g5 {[%clk 0:00:06]} 31. Bf2 {[%clk 0:00:54]}  Rc6 {[%clk 0:00:03]} 32. bxc5 {[%clk 0:00:52]}  bxc5 {[%clk 0:00:02]} 33. Qb7+ {[%clk 0:00:44]}  Re7 {[%clk 0:00:01]} 34. Qxe7+ {[%clk 0:00:43]}  Kxe7 {[%clk 0:00:02]} 35. Rxe5+ {[%clk 0:00:44]} 1-0


[Site "https://www.chess.com"]

[Event "Titled Tuesday Blitz February 15 Early 2022"]
[White "Marcinczyk, Monika"]
[Black "Leve, Nitai"]
[WhiteFideId "1192051"]
[BlackFideId "2006898"]
[WhiteElo "1730"]
[BlackElo "2144"]
[Result "0-1"]
[Round "06"]
[TimeControl "180+1"]
[Date "2022.02.15"]
[WhiteClock "0:00:02"]
[BlackClock "0:01:02"]

1. e4 {[%clk 0:02:55]}  c6 {[%clk 0:02:59]} 2. d4 {[%clk 0:02:55]}  d5 {[%clk 0:02:59]} 3. exd5 {[%clk 0:02:56]}  cxd5 {[%clk 0:03:00]} 4. Bd3 {[%clk 0:02:56]}  Nf6 {[%clk 0:03:00]} 5. c3 {[%clk 0:02:50]}  Nc6 {[%clk 0:02:59]} 6. Bf4 {[%clk 0:02:49]}  Bg4 {[%clk 0:02:59]} 7. Qb3 {[%clk 0:02:50]}  Qb6 {[%clk 0:02:58]} 8. Qxb6 {[%clk 0:02:47]}  axb6 {[%clk 0:02:59]} 9. Nd2 {[%clk 0:02:46]}  e6 {[%clk 0:02:57]} 10. Ngf3 {[%clk 0:02:37]}  Nd7 {[%clk 0:02:53]} 11. O-O {[%clk 0:02:26]}  f6 {[%clk 0:02:53]} 12. Rfe1 {[%clk 0:02:26]}  Kf7 {[%clk 0:02:53]} 13. h3 {[%clk 0:02:19]}  Bh5 {[%clk 0:02:53]} 14. a4 {[%clk 0:02:12]}  g5 {[%clk 0:02:43]} 15. Bg3 {[%clk 0:02:04]}  Bg6 {[%clk 0:02:34]} 16. Bb5 {[%clk 0:02:02]}  h5 {[%clk 0:02:29]} 17. Re2 {[%clk 0:01:38]}  Bh6 {[%clk 0:02:24]} 18. Rae1 {[%clk 0:01:37]}  Rhe8 {[%clk 0:02:24]} 19. Nf1 {[%clk 0:01:21]}  Bf5 {[%clk 0:01:44]} 20. Ne3 {[%clk 0:01:11]}  Be4 {[%clk 0:01:43]} 21. Nd2 {[%clk 0:01:10]}  Bg6 {[%clk 0:01:40]} 22. f3 {[%clk 0:00:50]}  Rad8 {[%clk 0:01:36]} 23. h4 {[%clk 0:00:48]}  gxh4 {[%clk 0:01:26]} 24. Bxh4 {[%clk 0:00:46]}  Na7 {[%clk 0:01:26]} 25. c4 {[%clk 0:00:03]}  Nxb5 {[%clk 0:01:06]} 26. axb5 {[%clk 0:00:01]}  Bd3 {[%clk 0:01:07]} 27. Rf2 {[%clk 0:00:02]}  Bxe3 {[%clk 0:01:01]} 28. Rxe3 {[%clk 0:00:02]}  dxc4 {[%clk 0:01:02]} 0-1


[Site "https://www.chess.com"]

[Event "Titled Tuesday Blitz February 15 Early 2022"]
[White "Matinian, Nikita"]
[Black "Petesch, Gabriel"]
[WhiteFideId "24129100"]
[BlackFideId "2032465"]
[WhiteElo "2422"]
[BlackElo "2374"]
[Result "1-0"]
[Round "06"]
[TimeControl "180+1"]
[Date "2022.02.15"]
[WhiteClock "0:01:26"]
[BlackClock "0:00:37"]

1. e4 {[%clk 0:02:59]}  e6 {[%clk 0:02:59]} 2. d4 {[%clk 0:02:58]}  d6 {[%clk 0:02:57]} 3. Nc3 {[%clk 0:02:59]}  g6 {[%clk 0:02:55]} 4. h4 {[%clk 0:02:59]}  h5 {[%clk 0:02:55]} 5. Nh3 {[%clk 0:02:58]}  Bg7 {[%clk 0:02:54]} 6. Bg5 {[%clk 0:02:58]}  Ne7 {[%clk 0:02:50]} 7. Qf3 {[%clk 0:02:56]}  Nbc6 {[%clk 0:02:47]} 8. Bb5 {[%clk 0:02:49]}  Bd7 {[%clk 0:02:37]} 9. Bxc6 {[%clk 0:02:48]}  bxc6 {[%clk 0:02:37]} 10. Bf6 {[%clk 0:02:46]}  Bxf6 {[%clk 0:02:09]} 11. Qxf6 {[%clk 0:02:47]}  Rf8 {[%clk 0:02:05]} 12. Ng5 {[%clk 0:02:45]}  Ng8 {[%clk 0:02:05]} 13. Qg7 {[%clk 0:02:41]}  Qf6 {[%clk 0:01:45]} 14. Qxf8+ {[%clk 0:02:40]}  Kxf8 {[%clk 0:01:45]} 15. Nh7+ {[%clk 0:02:40]}  Ke7 {[%clk 0:01:45]} 16. Nxf6 {[%clk 0:02:41]}  Nxf6 {[%clk 0:01:46]} 17. e5 {[%clk 0:02:41]}  Ng4 {[%clk 0:01:45]} 18. O-O {[%clk 0:02:22]}  Rb8 {[%clk 0:01:43]} 19. b3 {[%clk 0:02:22]}  Nh6 {[%clk 0:01:38]} 20. Rad1 {[%clk 0:02:19]}  Nf5 {[%clk 0:01:38]} 21. g3 {[%clk 0:02:18]}  Bc8 {[%clk 0:01:36]} 22. Ne4 {[%clk 0:02:17]}  Ba6 {[%clk 0:01:33]} 23. Rfe1 {[%clk 0:02:15]}  Bc8 {[%clk 0:01:33]} 24. c4 {[%clk 0:02:14]}  Kf8 {[%clk 0:01:32]} 25. Rd2 {[%clk 0:01:56]}  Ke7 {[%clk 0:01:32]} 26. Ng5 {[%clk 0:01:46]}  Kf8 {[%clk 0:01:29]} 27. Kh2 {[%clk 0:01:43]}  Bb7 {[%clk 0:00:59]} 28. f3 {[%clk 0:01:39]}  Ke7 {[%clk 0:00:56]} 29. Kh3 {[%clk 0:01:32]}  Rh8 {[%clk 0:00:53]} 30. d5 {[%clk 0:01:28]}  dxe5 {[%clk 0:00:37]} 31. dxe6 {[%clk 0:01:27]}  f6 {[%clk 0:00:36]} 32. Rd7+ {[%clk 0:01:26]}  Ke8 {[%clk 0:00:37]} 1-0


[Site "https://www.chess.com"]

[Event "Titled Tuesday Blitz February 15 Early 2022"]
[White "Matlakov, Maxim"]
[Black "Levitskiy, Andrey"]
[WhiteFideId "4168003"]
[BlackFideId "14132885"]
[WhiteElo "2661"]
[BlackElo "2301"]
[Result "1-0"]
[Round "06"]
[TimeControl "180+1"]
[Date "2022.02.15"]
[WhiteClock "0:00:13"]
[BlackClock "0:00:01"]

1. b3 {[%clk 0:03:00]}  d5 {[%clk 0:02:57]} 2. Bb2 {[%clk 0:03:00]}  Bg4 {[%clk 0:02:57]} 3. f3 {[%clk 0:02:56]}  Bh5 {[%clk 0:02:54]} 4. e3 {[%clk 0:02:52]}  Nd7 {[%clk 0:02:47]} 5. Nc3 {[%clk 0:02:52]}  e6 {[%clk 0:02:47]} 6. Qe2 {[%clk 0:02:51]}  c6 {[%clk 0:02:47]} 7. O-O-O {[%clk 0:02:51]}  Bd6 {[%clk 0:02:38]} 8. h4 {[%clk 0:02:50]}  f6 {[%clk 0:02:36]} 9. g4 {[%clk 0:02:47]}  Bf7 {[%clk 0:02:36]} 10. Nh3 {[%clk 0:02:46]}  a5 {[%clk 0:02:35]} 11. g5 {[%clk 0:02:41]}  a4 {[%clk 0:02:32]} 12. Kb1 {[%clk 0:02:33]}  axb3 {[%clk 0:02:29]} 13. axb3 {[%clk 0:02:32]}  Ba3 {[%clk 0:02:14]} 14. Bxa3 {[%clk 0:02:28]}  Rxa3 {[%clk 0:02:14]} 15. Kb2 {[%clk 0:02:29]}  Ra7 {[%clk 0:02:06]} 16. Bg2 {[%clk 0:02:28]}  Ne7 {[%clk 0:02:02]} 17. Ra1 {[%clk 0:02:27]}  Rxa1 {[%clk 0:01:54]} 18. Rxa1 {[%clk 0:02:27]}  O-O {[%clk 0:01:54]} 19. gxf6 {[%clk 0:02:26]}  Nxf6 {[%clk 0:01:52]} 20. Ng5 {[%clk 0:02:26]}  Nf5 {[%clk 0:01:46]} 21. Bh3 {[%clk 0:02:23]}  h6 {[%clk 0:01:22]} 22. Nxf7 {[%clk 0:02:21]}  Rxf7 {[%clk 0:01:23]} 23. e4 {[%clk 0:01:51]}  Nd4 {[%clk 0:01:05]} 24. Qe3 {[%clk 0:01:51]}  dxe4 {[%clk 0:01:00]} 25. fxe4 {[%clk 0:01:51]}  e5 {[%clk 0:01:01]} 26. Qg3 {[%clk 0:01:33]}  Qd6 {[%clk 0:00:53]} 27. Qg6 {[%clk 0:01:28]}  Rf8 {[%clk 0:00:43]} 28. Rg1 {[%clk 0:01:27]}  Qe7 {[%clk 0:00:42]} 29. h5 {[%clk 0:01:18]}  Ra8 {[%clk 0:00:40]} 30. Kb1 {[%clk 0:01:03]}  Nf3 {[%clk 0:00:26]} 31. Rg3 {[%clk 0:00:48]}  Nxd2+ {[%clk 0:00:22]} 32. Kc1 {[%clk 0:00:48]}  Rd8 {[%clk 0:00:15]} 33. Kb2 {[%clk 0:00:39]}  Nc4+ {[%clk 0:00:08]} 34. Kb1 {[%clk 0:00:32]}  Nd2+ {[%clk 0:00:07]} 35. Ka2 {[%clk 0:00:26]}  Ra8+ {[%clk 0:00:04]} 36. Na4 {[%clk 0:00:26]}  Kh8 {[%clk 0:00:04]} 37. Be6 {[%clk 0:00:25]}  b5 {[%clk 0:00:03]} 38. Bf7 {[%clk 0:00:25]}  Rg8 {[%clk 0:00:02]} 39. Bxg8 {[%clk 0:00:25]}  Kxg8 {[%clk 0:00:03]} 40. Nc5 {[%clk 0:00:22]}  Qa7+ {[%clk 0:00:02]} 41. Kb2 {[%clk 0:00:22]}  Nfxe4 {[%clk 0:00:01]} 42. Nxe4 {[%clk 0:00:13]} 1-0


[Site "https://www.chess.com"]